Cogmind - Beta 10.1 @@@ ROGUE MODE // 2020.10.08 @ 23:25:48 Player: BOTHUNTER Result: Destroyed by S-43 Plague with Heavy Machine Gun Performance ------------- Evolutions (9) 4500 Regions Visited (17) 3400 Robots Destroyed (38) 190 Value Destroyed (1107) 1107 Prototype IDs (9) 180 Alien Tech Used (0) 0 Bonus (2197) 2197 TOTAL SCORE: 11574 Bonus ------- Triggered Max Security 1000 High Alert Combat Kills 401 Follower Combat Kills 296 Entered Garrisons 200 Aligned with FarCom 300 Cogmind --------- Core Integrity 0/1600 Matter 27/300 Energy 100/100 System Corruption 7% Temperature Cool (0) Movement Core (50) Location -1/Garrison Parts ------- > --- POWER (1) -------- (None) > --- PROPULSION (2) --- (None) > --- UTILITY (20) ----- Experimental Signal Interpreter Advanced Melee Analysis Suite Advanced Core Analyzer Hacking Suite System Shield System Shield > --- WEAPON (2) ------- (None) > --- INVENTORY (4) ---- Heavy Machine Gun Fusion Bomb Launcher Peak State ------------ > --- POWER ------------ Micro Fission Core > --- PROPULSION ------- Nuclear Pulse Thruster Q-thruster > --- UTILITY ---------- Experimental Signal Interpreter Advanced Melee Analysis Suite Advanced Melee Analysis Suite Advanced Melee Analysis Suite Advanced Melee Analysis Suite Advanced Core Analyzer Transmission Jammer Advanced Reaction Control System Improved Medium Armor Plating Hacking Suite Hacking Suite Hacking Suite Hacking Suite Hacking Suite Hacking Suite Improved Hacking Suite System Shield System Shield > --- WEAPON ----------- Fusion Bomb Launcher Great Axe > --- INVENTORY -------- Xenon Bombardment Thruster Xenon Bombardment Thruster Fusion Bomb Launcher [Rating: 111] Favorites ----------- Power Light Ion Engine Engine Light Ion Engine Power Core Micro Fission Core Reactor Light Antimatter Reactor Propulsion Improved Flight Unit Flight Unit Improved Flight Unit Utility Hacking Suite Device Transmission Jammer Storage Compact Battery Processor Advanced Melee Analysis Suite Hackware Hacking Suite Protection Utility Shielding Weapon Great Axe Ballistic Gun Improved Assault Rifle Launcher Fusion Bomb Launcher Special Weapon Field Lobotomy Kit Impact Weapon Hammer Slashing Weapon Great Axe Build | -11 -10 -10 -9 -9 -9 -8 -8 -7 -6 -5 -4 -4 -3 -2 -2 -1 -1 ------- Run | Scr Mat Min Mat Min Exi Min Mat Fac Fac Fac Fac Ext Res Res Tes Acc Gar Slots Evolved 18 | . . . 2 . . . 2 2 2 2 2 . 2 2 . 2 . Power . | . . . . . . . . . . . . . . . . . . Propulsion . | . . . . . . . . . . . . . . . . . . Utility 18 | . . . 2 . . . 2 2 2 2 2 . 2 2 . 2 . Weapon . | . . . . . . . . . . . . . . . . . . Parts Attached 84 | 1 2 1 4 4 4 . 8 11 3 . . 3 12 12 5 . 14 Power 7 | . . . . 1 . . . 4 . . . . 2 . . . . Engine 5 | . . . . 1 . . . 4 . . . . . . . . . Core 1 | . . . . . . . . . . . . . 1 . . . . Reactor 1 | . . . . . . . . . . . . . 1 . . . . Propulsion 16 | . 2 . 1 1 . . 1 2 . . . . 3 . 2 . 4 Treads . | . . . . . . . . . . . . . . . . . . Leg . | . . . . . . . . . . . . . . . . . . Wheel . | . . . . . . . . . . . . . . . . . . Hover . | . . . . . . . . . . . . . . . . . . Flight 16 | . 2 . 1 1 . . 1 2 . . . . 3 . 2 . 4 Utility 37 | . . . 1 . 2 . 6 4 3 . . 2 6 10 3 . . Device 10 | . . . 1 . 1 . 1 1 . . . 2 2 2 . . . Storage 2 | . . . . . . . 1 . . . . . 1 . . . . Processor 11 | . . . . . . . 2 . . . . . 2 5 2 . . Hackware 12 | . . . . . 1 . 1 3 3 . . . 1 3 . . . Protection 2 | . . . . . . . 1 . . . . . . . 1 . . Artifact . | . . . . . . . . . . . . . . . . . . Weapon 24 | 1 . 1 2 2 2 . 1 1 . . . 1 1 2 . . 10 Energy Gun . | . . . . . . . . . . . . . . . . . . Energy Cannon . | . . . . . . . . . . . . . . . . . . Ballistic Gun 7 | 1 . . 2 1 . . . . . . . . . . . . 3 Ballistic Cannon . | . . . . . . . . . . . . . . . . . . Launcher 6 | . . . . 1 . . . . . . . . . . . . 5 Special Weapon 5 | . . . . . 1 . . . . . . 1 1 2 . . . Impact Weapon 3 | . . 1 . . 1 . 1 . . . . . . . . . . Slashing Weapon 3 | . . . . . . . . 1 . . . . . . . . 2 Piercing Weapon . | . . . . . . . . . . . . . . . . . . Special Melee Weapon . | . . . . . . . . . . . . . . . . . . Unidentified Prototypes 9 | . . . 2 . 2 . . 1 . . . . 1 . 2 1 . Parts Lost 34 | . . . 1 . . . 2 1 . . 1 . 3 4 . 1 21 Power 4 | . . . . . . . 1 1 . . . . 1 . . . 1 Propulsion 7 | . . . . . . . 1 . . . . . 1 . . . 5 Utility 19 | . . . 1 . . . . . . . . . 1 4 . 1 12 Weapon 4 | . . . . . . . . . . . 1 . . . . . 3 Highest Loss Streak 14 | . . . 1 . . . 2 1 . . 1 . 3 2 . 1 14 Average Slot Usage (%) 77 | . 28 39 38 46 57 66 91 97 96 88 76 77 78 89 91 88 76 Engine 3 | . . . . 6 11 11 8 5 6 5 5 5 . . . . . Core 1 | . . . . . . . . . . . . . 3 4 4 4 3 Flight 12 | . 14 14 11 17 22 22 18 15 13 11 10 10 8 8 8 8 7 Device 6 | . . . 11 . . . . 6 6 5 5 8 10 13 8 8 5 Storage 2 | . . . . . . . 6 7 6 5 5 5 4 3 . . . Processor 8 | . . . . . . . 17 10 . . . . 8 11 23 24 20 Hackware 26 | . . . . . 2 11 16 27 42 41 36 36 30 39 39 36 32 Protection 3 | . . . . . . . 8 7 6 5 5 5 4 2 2 4 2 Ballistic Gun 4 | . 14 14 5 9 11 11 9 7 6 5 3 . . . . . . Impact Weapon 3 | . . 11 11 11 11 11 8 4 . . . . . . . . . Slashing Weapon 2 | . . . . . . . . 3 6 5 5 5 4 4 4 4 2 Naked Turns . | . . . . . . . . . . . . . . . . . . Heaviest Build 31 | 2 2 4 6 8 8 8 10 13 13 13 13 20 14 24 19 19 31 Greatest Support 19 | 3 8 4 6 10 10 10 12 13 13 13 13 13 19 19 19 19 19 Greatest Overweight (x) 3 | . . . . . . . 1 . . . . 1 1 1 2 . 3 Average Overweight (x) . | . . . . . . . . . . . . . . . . . . Largest Inventory Capacity 4 | 4 4 4 4 4 4 4 4 4 4 4 4 4 4 4 4 4 4 Average Capacity 4 | 4 4 4 4 4 4 4 4 4 4 4 4 4 4 4 4 4 4 Most Carried 4 | 2 4 4 4 4 4 4 4 4 4 4 4 4 4 4 4 4 4 Average Carried 3 | 1 3 4 3 4 3 4 4 3 4 4 4 3 3 3 3 4 3 Final Capacity 4 | 4 4 4 4 4 4 4 4 4 4 4 4 4 4 4 4 4 4 Final Carried 4 | 2 4 4 4 4 4 4 4 4 4 4 4 4 4 3 4 4 2 Class Distribution -------------------- 58% | Wizard-Mutant 26% | Mutant 15% | Hacker-Mutant Dominant Class ---------------- Mutant | -10/Materials Mutant | -10/Mines Mutant | -9/Materials Mutant | -9/Mines Mutant | -9/Exiles Mutant | -8/Mines Hacker-Mutant | -8/Materials Hacker-Mutant | -7/Factory Wizard-Mutant | -6/Factory Wizard-Mutant | -5/Factory Wizard-Mutant | -4/Factory Wizard-Mutant | -4/Extension Wizard-Mutant | -3/Research Wizard-Mutant | -2/Research Wizard-Mutant | -2/Testing Wizard-Mutant | -1/Access Wizard-Mutant | -1/Garrison Resources | -11 -10 -10 -9 -9 -9 -8 -8 -7 -6 -5 -4 -4 -3 -2 -2 -1 -1 ----------- Run | Scr Mat Min Mat Min Exi Min Mat Fac Fac Fac Fac Ext Res Res Tes Acc Gar Matter Collected 923 | 210 42 33 19 20 . 17 . 67 . . . 94 66 196 . . 159 Remotely . | . . . . . . . . . . . . . . . . . . Salvage Created 1267 | . 42 54 160 24 . 17 109 67 13 . . 111 64 384 . . 222 Parts 74 | . 2 1 7 7 . . 11 6 3 . . 4 6 18 . . 9 Haulers Intercepted 6 | . 1 . 2 . . . 2 . . . . 1 . . . . . Recyclers Shooed 2 | . . . . . . . . . . . . . . 2 . . . Parts Field Recycled . | . . . . . . . . . . . . . . . . . . Retrieved Matter . | . . . . . . . . . . . . . . . . . . Parts Self-Destructed . | . . . . . . . . . . . . . . . . . . Prevented . | . . . . . . . . . . . . . . . . . . Kills | -11 -10 -10 -9 -9 -9 -8 -8 -7 -6 -5 -4 -4 -3 -2 -2 -1 -1 ------- Run | Scr Mat Min Mat Min Exi Min Mat Fac Fac Fac Fac Ext Res Res Tes Acc Gar Combat Hostiles Destroyed 21 | . . . 1 4 . . . . . . . 1 1 2 . . 12 Melee 9 | . . . . . . . . . . . . 1 1 2 . . 5 Guns 2 | . . . 1 1 . . . . . . . . . . . . . AOE 10 | . . . . 3 . . . . . . . . . . . . 7 Classes Destroyed 11 | . 1 1 2 1 . . 1 1 1 . . 1 . 1 . . 1 Worker 2 | . . . . . . . . 1 . . . . . 1 . . . Builder 1 | . . . . . . . 1 . . . . . . . . . . Hauler 6 | . 1 . 2 . . . 2 . . . . 1 . . . . . Recycler 3 | . . 1 . . . . . 1 . . . . . 1 . . . Operator 2 | . . . . . . . . . 1 . . . 1 . . . . Watcher 3 | . . . 1 . . . . . . . . . . 2 . . . Swarmer 17 | . . . . 4 . . . . . . . . 1 1 . . 11 Grunt 1 | . . . 1 . . . . . . . . . . . . . . Sentry 1 | . . . . . . . . . . . . . . 1 . . . Programmer 1 | . . . . . . . . . . . . . . . . . 1 Behemoth 1 | . . . . . . . . . . . . 1 . . . . . Best Kill Streak 9 | . 1 1 3 4 . . 2 1 1 . . 1 1 1 . . 9 Combat Bots Only 9 | . . . 1 4 . . . . . . . 1 1 1 . . 9 Max Kills in Single Turn 4 | . 1 1 1 3 . . 1 1 1 . . 1 1 1 . . 4 Gunslinging . | . . . . . . . . . . . . . . . . . . Exploded 4 | . . . . 3 . . . . . . . . . . . . 4 Melee 1 | . . . . . . . . . . . . 1 1 1 . . 1 Uniques/NPCs Destroyed . | . . . . . . . . . . . . . . . . . . Combat | -11 -10 -10 -9 -9 -9 -8 -8 -7 -6 -5 -4 -4 -3 -2 -2 -1 -1 -------- Run | Scr Mat Min Mat Min Exi Min Mat Fac Fac Fac Fac Ext Res Res Tes Acc Gar Damage Taken 4128 | . 7 9 116 38 . 20 85 121 . 90 41 . 356 304 92 . 2849 Core 1908 | . . 9 34 . . . 10 35 . 23 18 . 78 81 20 . 1600 Absorbed by Shields 82 | . . . . . . . . . . . . . . 13 . . 69 Core Remaining (%) 96 | 100 . 96 . . . 91 98 95 100 97 . 98 94 . 93 . . Volleys Fired 64 | . 15 . 18 3 . . 6 . . . . 1 1 3 . . 17 Largest 1 | . 1 . 1 1 . . 1 . . . . 1 1 1 . . 1 Hottest 52 | . 20 . 23 30 . . 23 . . . . . . . . . 52 Shots Fired 64 | . 15 . 18 3 . . 6 . . . . 1 1 3 . . 17 Gun 50 | . 15 . 18 1 . . 6 . . . . . . . . . 10 Cannon . | . . . . . . . . . . . . . . . . . . Launcher 9 | . . . . 2 . . . . . . . . . . . . 7 Special 5 | . . . . . . . . . . . . 1 1 3 . . . Kinetic 50 | . 15 . 18 1 . . 6 . . . . . . . . . 10 Thermal . | . . . . . . . . . . . . . . . . . . Explosive 9 | . . . . 2 . . . . . . . . . . . . 7 Electromagnetic . | . . . . . . . . . . . . . . . . . . Robot Hit Streak 9 | . 4 . 4 . . . 5 . . . . 3 4 7 . . 9 Robot Miss Streak 3 | . 2 . 3 . . . 2 . . . . . . . . . 1 Penetration Max . | . . . . . . . . . . . . . . . . . . Secondary Targets . | . . . . . . . . . . . . . . . . . . Shots Hit Robots 88 | . 8 4 14 1 . 1 6 5 1 . 1 3 8 17 . . 19 Core Hits 54 | . 2 . 7 5 . . 3 2 1 . . 2 3 8 . . 21 Critical Hits 2 | . . . 1 . . . . . . . . . . 1 . . . Critical Kills 1 | . . . 1 . . . . . . . . . . . . . . Critical Parts Destroyed 1 | . . . . . . . . . . . . . . 1 . . . Melee Attacks 223 | . . 17 12 4 . 26 18 15 16 12 8 2 26 36 11 3 17 Impact 90 | . . 17 12 4 . 26 18 13 . . . . . . . . . Slashing 133 | . . . . . . . . 2 16 12 8 2 26 36 11 3 17 Piercing . | . . . . . . . . . . . . . . . . . . Sneak Attacks 15 | . . 2 1 1 . . 2 2 . . 1 1 1 3 . . 1 Combat Hostiles 1 | . . . . . . . . . . . . . . . . . 1 Follow-up Attacks . | . . . . . . . . . . . . . . . . . . Damage Inflicted 4939 | . 107 121 255 257 . 70 175 258 61 . 144 181 395 890 . . 2025 Guns 513 | . 107 . 141 17 . . 58 . . . . . . . . . 190 Cannons . | . . . . . . . . . . . . . . . . . . Explosions 1456 | . . . . 181 . . . . . . . . . . . . 1275 Melee 2970 | . . 121 114 59 . 70 117 258 61 . 144 181 395 890 . . 560 Ramming . | . . . . . . . . . . . . . . . . . . Kinetic 513 | . 107 . 141 17 . . 58 . . . . . . . . . 190 Thermal . | . . . . . . . . . . . . . . . . . . Explosive 1456 | . . . . 181 . . . . . . . . . . . . 1275 Electromagnetic . | . . . . . . . . . . . . . . . . . . Impact 581 | . . 121 114 59 . 70 117 100 . . . . . . . . . Slashing 2389 | . . . . . . . . 158 61 . 144 181 395 890 . . 560 Piercing . | . . . . . . . . . . . . . . . . . . Highest Corruption 7 | . . . . . . . . . . . . . . 2 2 . 7 Average Corruption 2 | . . . . . . . . . . . . . . 1 2 . 5 Corruption Purged . | . . . . . . . . . . . . . . . . . . Effects 4 | . . . . . . . . . . . . . . 1 1 . 2 Data Loss (minor) 3 | . . . . . . . . . . . . . . . 1 . 2 Targeting Errors 1 | . . . . . . . . . . . . . . 1 . . . Overload Shots . | . . . . . . . . . . . . . . . . . . Overflow Damage 514 | . . 49 . 45 . 66 35 . . . 114 . 11 115 . . 79 Projectiles . | . . . . . . . . . . . . . . . . . . Explosions 71 | . . . . 16 . . . . . . . . . . . . 55 Melee 443 | . . 49 . 29 . 66 35 . . . 114 . 11 115 . . 24 Knockbacks 3 | . . 3 . . . . . . . . . . . . . . . Impact 2 | . . 2 . . . . . . . . . . . . . . . Kinetic . | . . . . . . . . . . . . . . . . . . Secondary 1 | . . 1 . . . . . . . . . . . . . . . Self-Inflicted Damage 48 | . . . . . . . . . . . . . . . . . 48 Shots 1 | . . . . . . . . . . . . . . . . . 1 Rammed 1 | . . . . . . . . . . . . . . . . . 1 Targets Rammed 1 | . . . . . . . . . . . . . . . . . 1 Kicked . | . . . . . . . . . . . . . . . . . . Crushed . | . . . . . . . . . . . . . . . . . . Highest Temperature . | . . . . . . . . . . . . . . . . . . Average Temperature . | . . . . . . . . . . . . . . . . . . Received Heat Transfer 288 | . . . 33 6 . . 27 36 . 18 12 . 18 15 27 . 96 Siege Activations . | . . . . . . . . . . . . . . . . . . Robots Corrupted . | . . . . . . . . . . . . . . . . . . Combat Hostiles . | . . . . . . . . . . . . . . . . . . Parts Fried 2 | . . 1 . . . . 1 . . . . . . . . . . Impact Corruptions 10 | . . 2 . 1 . 6 1 . . . . . . . . . . Robots Melted . | . . . . . . . . . . . . . . . . . . Combat Hostiles . | . . . . . . . . . . . . . . . . . . Parts Melted . | . . . . . . . . . . . . . . . . . . Heat Transferred . | . . . . . . . . . . . . . . . . . . Parts Sabotaged . | . . . . . . . . . . . . . . . . . . Parts Stolen . | . . . . . . . . . . . . . . . . . . Parts Stripped . | . . . . . . . . . . . . . . . . . . Power Chain Reactions . | . . . . . . . . . . . . . . . . . . Missiles Intercepted . | . . . . . . . . . . . . . . . . . . Alert | -11 -10 -10 -9 -9 -9 -8 -8 -7 -6 -5 -4 -4 -3 -2 -2 -1 -1 ------- Run | Scr Mat Min Mat Min Exi Min Mat Fac Fac Fac Fac Ext Res Res Tes Acc Gar Peak Influence 1699 | . 47 23 100 139 . 16 111 146 566 339 194 86 196 116 1699 1126 1408 Initial 1100 | . . 18 8 34 . . 5 45 71 277 165 1 45 . 56 1100 900 Average 298 | . 15 19 50 114 . 9 31 103 303 306 176 14 114 36 1603 1107 1120 Maximum Alert Level 5 | . . . . . . . . . 2 1 . . . . 5 4 4 Low Security (%) 74 | 100 100 100 100 100 . 100 100 100 52 . 100 100 100 100 . . . Level 1 3 | . . . . . . . . . . 100 . . . . . . . Level 2 4 | . . . . . . . . . 47 . . . . . . . . Level 3 6 | . . . . . . . . . . . . . . . . . 53 Level 4 7 | . . . . . . . . . . . . . . . . 100 46 Level 5 . | . . . . . . . . . . . . . . . . . . High Security . | . . . . . . . . . . . . . . . . . . Max Security 3 | . . . . . . . . . . . . . . . 99 . . Squads Dispatched 14 | . 2 . 1 . . . . . 2 . . . 2 1 6 . . Investigation 4 | . 2 . . . . . . . 1 . . . 1 . . . . Extermination 1 | . . . . . . . . . . . . . . 1 . . . Reinforcement 3 | . . . 1 . . . . . 1 . . . 1 . . . . Assault 6 | . . . . . . . . . . . . . . . 6 . . Garrison . | . . . . . . . . . . . . . . . . . . Intercept . | . . . . . . . . . . . . . . . . . . Construction Impeded . | . . . . . . . . . . . . . . . . . . Haulers Reinforced . | . . . . . . . . . . . . . . . . . . Stealth | -11 -10 -10 -9 -9 -9 -8 -8 -7 -6 -5 -4 -4 -3 -2 -2 -1 -1 --------- Run | Scr Mat Min Mat Min Exi Min Mat Fac Fac Fac Fac Ext Res Res Tes Acc Gar Distress Signals 3 | . . . 2 . . . 1 . . . . . . . . . . Communications Jammed 1 | . . . . . . . . . . . . . 1 . . . . Distress Signals 1 | . . . . . . . . . . . . . 1 . . . . Times Spotted 110 | . 5 4 9 6 . 3 10 1 2 1 3 3 6 18 7 2 30 Peak Tracking Total 22 | . 8 3 9 3 . 3 12 1 1 1 3 3 3 8 12 2 22 Tactical Retreats 12 | . 1 2 1 2 . . . . 1 . . . . 1 . . 4 Traps | -11 -10 -10 -9 -9 -9 -8 -8 -7 -6 -5 -4 -4 -3 -2 -2 -1 -1 ------- Run | Scr Mat Min Mat Min Exi Min Mat Fac Fac Fac Fac Ext Res Res Tes Acc Gar Traps Triggered 5 | . . . . . . . . . . . . . 1 2 1 . 1 Indirectly . | . . . . . . . . . . . . . . . . . . Trap Hack Attempts . | . . . . . . . . . . . . . . . . . . Triggered . | . . . . . . . . . . . . . . . . . . Disarmed . | . . . . . . . . . . . . . . . . . . Reprogrammed 8 | . . . . . . . . . . 2 . . 6 . . . . Reused 2 | . . . . . . . . . . 1 . . 1 . . . . Traps Extracted . | . . . . . . . . . . . . . . . . . . Installed . | . . . . . . . . . . . . . . . . . . Triggered 2 | . . . . . . . . . . 1 . . 1 . . . . Machines | -11 -10 -10 -9 -9 -9 -8 -8 -7 -6 -5 -4 -4 -3 -2 -2 -1 -1 ---------- Run | Scr Mat Min Mat Min Exi Min Mat Fac Fac Fac Fac Ext Res Res Tes Acc Gar Machines Disabled 3 | . . . . . . . . . 1 . . . 2 . . . . Max in Single Turn 1 | . . . . . . . . . 1 . . . . . . . . Garrison Access 3 | . . . . . . . . 1 . . . . . 2 . . . Machines Sabotaged . | . . . . . . . . . . . . . . . . . . Garrisons Compromised . | . . . . . . . . . . . . . . . . . . Overloaded Fab Kills . | . . . . . . . . . . . . . . . . . . Fab Network Shutdowns 1 | . . . . . . . . . 1 . . . . . . . . Hacking | -11 -10 -10 -9 -9 -9 -8 -8 -7 -6 -5 -4 -4 -3 -2 -2 -1 -1 --------- Run | Scr Mat Min Mat Min Exi Min Mat Fac Fac Fac Fac Ext Res Res Tes Acc Gar Machines Accessed 37 | . 2 . 4 . . . 3 5 5 2 2 1 7 4 . 2 . Terminals 26 | . 2 . 3 . . . 2 2 3 2 2 1 7 1 . 1 . Fabricators 4 | . . . . . . . . 1 2 . . . . 1 . . . Repair Stations 1 | . . . . . . . 1 . . . . . . . . . . Recycling Units . | . . . . . . . . . . . . . . . . . . Scanalyzers 2 | . . . 1 . . . . 1 . . . . . . . . . Garrison Access 4 | . . . . . . . . 1 . . . . . 2 . 1 . Total Hacks 124 | . 11 . 14 . . . 10 17 15 11 11 3 19 10 . 3 . Successful 85 | . 5 . 10 . . . 7 10 10 9 8 3 12 8 . 3 . Failed 38 | . 6 . 3 . . . 3 7 5 2 3 . 7 2 . . . Catastrophic 2 | . . . . . . . . . . . 1 . 1 . . . . Database Lockouts 1 | . . . 1 . . . . . . . . . . . . . . Manual 64 | . 9 . 12 . 1 . 6 4 6 9 9 2 5 . . 1 . Terminals 95 | . 11 . 12 . . . 8 5 10 11 11 3 19 3 . 2 . Fabricators 14 | . . . . . . . . 5 5 . . . . 4 . . . Repair Stations 2 | . . . . . . . 2 . . . . . . . . . . Recycling Units . | . . . . . . . . . . . . . . . . . . Scanalyzers 5 | . . . 2 . . . . 3 . . . . . . . . . Garrison Access 8 | . . . . . . . . 4 . . . . . 3 . 1 . Terminal Hacks 48 | . 3 . 3 . . . 1 3 6 7 8 3 11 2 . 1 . Record 1 | . . . . . . . . . . . . . 1 . . . . Part Schematic 2 | . . . . . . . . . 1 . 1 . . . . . . Robot Schematic 1 | . . . . . . . . . 1 . . . . . . . . Robot Analysis 11 | . 1 . 3 . . . . . 2 2 1 . 2 . . . . Open Door 1 | . . . . . . . . . . . . 1 . . . . . Level Access Points 6 | . . . . . . . 1 . 1 1 1 1 1 . . . . Branch Access Points 3 | . 1 . . . . . . . . . 1 1 . . . . . Machine Index 2 | . . . . . . . . . 1 . . . 1 . . . . Terminal Index 3 | . . . . . . . . 1 . . 1 . . 1 . . . Fabricator Index 1 | . . . . . . . . 1 . . . . . . . . . Garrison Index 1 | . . . . . . . . . . 1 . . . . . . . Alert Level 2 | . . . . . . . . . . . . . 1 1 . . . Unreport Threat 4 | . . . . . . . . . . . 3 . 1 . . . . Locate Traps 3 | . . . . . . . . 1 . 1 . . . . . 1 . Reprogram Traps 2 | . . . . . . . . . . 1 . . 1 . . . . Recall Reinforcements 1 | . 1 . . . . . . . . . . . . . . . . Registered Components 1 | . . . . . . . . . . . . . 1 . . . . Registered Prototypes 1 | . . . . . . . . . . . . . 1 . . . . Zone Layout 2 | . . . . . . . . . . 1 . . 1 . . . . Fabricator Hacks 11 | . . . . . . . . 3 4 . . . . 4 . . . Load Schematic 4 | . . . . . . . . 1 2 . . . . 1 . . . Build 7 | . . . . . . . . 2 2 . . . . 3 . . . Repair Station Hacks 2 | . . . . . . . 2 . . . . . . . . . . Scan Component 1 | . . . . . . . 1 . . . . . . . . . . Repair 1 | . . . . . . . 1 . . . . . . . . . . Recycling Unit Hacks . | . . . . . . . . . . . . . . . . . . Scanalyzer 4 | . . . 2 . . . . 2 . . . . . . . . . Insert Component 2 | . . . 1 . . . . 1 . . . . . . . . . Analyze 2 | . . . 1 . . . . 1 . . . . . . . . . Garrison Access Hacks 4 | . . . . . . . . 1 . . . . . 2 . 1 . Unlock Access 1 | . . . . . . . . . . . . . . . . 1 . Seal Access 3 | . . . . . . . . 1 . . . . . 2 . . . Unauthorized Hacks 16 | . 2 . 5 . . . 4 1 . 2 . . 1 . . 1 . Terminals 16 | . 2 . 5 . . . 4 1 . 2 . . 1 . . 1 . Track 3 | . . . 2 . . . 1 . . . . . . . . . . Assimilate 3 | . 2 . 1 . . . . . . . . . . . . . . Botnet 9 | . . . 2 . . . 2 1 . 2 . . 1 . . 1 . Operators 1 | . . . . . . . 1 . . . . . . . . . . Fabricators . | . . . . . . . . . . . . . . . . . . Repair Stations . | . . . . . . . . . . . . . . . . . . Recycling Units . | . . . . . . . . . . . . . . . . . . Scanalyzers . | . . . . . . . . . . . . . . . . . . Garrison Access . | . . . . . . . . . . . . . . . . . . Data Cores Recovered . | . . . . . . . . . . . . . . . . . . Used . | . . . . . . . . . . . . . . . . . . Hacking Detections 33 | . 2 . 4 . . . 3 5 4 2 1 1 6 3 . 2 . Full Trace Events 3 | . 2 . . . . . . . 1 . . . . . . . . Feedback Events . | . . . . . . . . . . . . . . . . . . Feedback Blocked . | . . . . . . . . . . . . . . . . . . Robot Schematics Acquired 1 | . . . . . . . . . 1 . . . . . . . . Robots Built . | . . . . . . . . . . . . . . . . . . Matter . | . . . . . . . . . . . . . . . . . . Time . | . . . . . . . . . . . . . . . . . . Total Robot Build Rating . | . . . . . . . . . . . . . . . . . . Part Schematics Acquired 4 | . . . 1 . . . . 1 1 . 1 . . . . . . Parts Built 7 | . . . . . . . . 2 2 . . . . 3 . . . Matter 1022 | . . . . . . . . 292 292 . . . . 438 . . . Time 216 | . . . . . . . . 72 72 . . . . 72 . . . Total Part Build Rating 21 | . . . . . . . . 6 6 . . . . 9 . . . Parts Repaired 1 | . . . . . . . 1 . . . . . . . . . . Time 26 | . . . . . . . 26 . . . . . . . . . . Parts Recycled . | . . . . . . . . . . . . . . . . . . Recycled Matter . | . . . . . . . . . . . . . . . . . . Retrieved Matter . | . . . . . . . . . . . . . . . . . . Retrieved Components . | . . . . . . . . . . . . . . . . . . Parts Scanalyzed 2 | . . . 1 . . . . 1 . . . . . . . . . Part Schematics Acquired 2 | . . . 1 . . . . 1 . . . . . . . . . Parts Damaged . | . . . . . . . . . . . . . . . . . . Bothacking | -11 -10 -10 -9 -9 -9 -8 -8 -7 -6 -5 -4 -4 -3 -2 -2 -1 -1 ------------ Run | Scr Mat Min Mat Min Exi Min Mat Fac Fac Fac Fac Ext Res Res Tes Acc Gar Used RIF Installer . | . . . . . . . . . . . . . . . . . . Robots Hacked . | . . . . . . . . . . . . . . . . . . Non-combat . | . . . . . . . . . . . . . . . . . . Combat . | . . . . . . . . . . . . . . . . . . Robot Hacks Applied . | . . . . . . . . . . . . . . . . . . Relay Couplers Released . | . . . . . . . . . . . . . . . . . . Robots Rewired 1 | . . . . . . . . 1 . . . . . . . . . Allies Hacked 2 | . . . . . . . . . . . . . . 2 . . . Hacks Repelled . | . . . . . . . . . . . . . . . . . . Allies | -11 -10 -10 -9 -9 -9 -8 -8 -7 -6 -5 -4 -4 -3 -2 -2 -1 -1 -------- Run | Scr Mat Min Mat Min Exi Min Mat Fac Fac Fac Fac Ext Res Res Tes Acc Gar Total Allies 10 | . 1 . 1 . . . . 1 . . . 1 1 5 . . . Largest Group 3 | . 1 . 1 . . . . 1 1 . . 1 2 3 . . . Highest-Rated Group 244 | . 10 . 10 . . . . 32 32 . . 115 208 244 . . . Highest-Rated Ally 115 | . 10 . 10 . . . . 32 32 . . 115 115 90 . . . Total Orders 6 | . . . . . . . . . . . . . 6 . . . . ROAM 1 | . . . . . . . . . . . . . 1 . . . . EXPLORE 4 | . . . . . . . . . . . . . 4 . . . . RETURN 1 | . . . . . . . . . . . . . 1 . . . . Ally Attacks 43 | . . . . . . . . 3 4 . . 8 9 19 . . . Total Damage 1805 | . . . . . . . . 185 59 . . 573 498 490 . . . Kills 12 | . . . . . . . . 1 . . . 2 6 3 . . . Allies Corrupted 1 | . . . . . . . . . . . . . . 1 . . . Allies Melted . | . . . . . . . . . . . . . . . . . . Field Lobotomies 5 | . . . . . . . . . . . . 1 1 3 . . . Intel | -11 -10 -10 -9 -9 -9 -8 -8 -7 -6 -5 -4 -4 -3 -2 -2 -1 -1 ------- Run | Scr Mat Min Mat Min Exi Min Mat Fac Fac Fac Fac Ext Res Res Tes Acc Gar Robot Analysis Total 11 | . 1 . 3 . . . . . 2 2 1 . 2 . . . . Derelict Logs Recovered 2 | . . 1 . 1 . . . . . . . . . . . . . Drone Launches 6 | . . . . . . . . . . . . 3 3 . . . . Drone Recoveries 3 | . . . . . . . . . . . . 1 2 . . . . Exploration | -11 -10 -10 -9 -9 -9 -8 -8 -7 -6 -5 -4 -4 -3 -2 -2 -1 -1 ------------- Run | Scr Mat Min Mat Min Exi Min Mat Fac Fac Fac Fac Ext Res Res Tes Acc Gar Turns Passed 3799 | 23 106 256 152 95 89 219 301 282 371 120 95 97 402 527 135 66 463 Spaces Moved 4530 | 40 152 386 168 202 236 266 290 308 294 187 183 142 491 514 240 147 284 Core 93 | 40 17 . . . . . . . . . . . . . . . 36 Treads . | . . . . . . . . . . . . . . . . . . Legs . | . . . . . . . . . . . . . . . . . . Wheels . | . . . . . . . . . . . . . . . . . . Hover . | . . . . . . . . . . . . . . . . . . Flight 4437 | . 135 386 168 202 236 266 290 308 294 187 183 142 491 514 240 147 248 Fastest Speed 32 | 50 37 40 35 34 34 34 34 32 34 34 34 34 34 37 37 37 37 Average Speed 37 | 50 41 40 35 34 34 34 34 33 34 34 34 37 41 37 38 37 45 Slowest Speed 280 | 50 50 40 40 35 34 34 105 34 34 34 34 109 109 117 200 37 280 Overloaded Moves . | . . . . . . . . . . . . . . . . . . Propulsion Burnouts . | . . . . . . . . . . . . . . . . . . Robots Hopped 8 | . 1 2 . . . . 3 . . . . . . 1 1 . . Cave-ins Triggered 1 | . . . . . . . . . . . . . . . . . 1 Exploration Rate (%) 28 | 3 36 94 21 38 62 56 27 9 9 6 6 25 20 18 34 6 41 Regions Visited 17 Branch Regions 6 Pre-discovered Areas . | . . . . . . . . . . . . . . . . . . Known Exits Taken 10 | . 1 . . . . . 1 1 1 1 1 1 1 . 1 1 . Unknown Exits Taken 7 | 1 . 1 1 1 1 1 . . . . . . . 1 . . . Scrap Searched 2 | . . 1 . . . 1 . . . . . . . . . . . Spaces Dug 127 | . . 9 5 2 . 14 12 6 12 12 5 . 15 18 11 2 4 Terrain Destroyed 325 | . . 9 5 18 . 14 12 6 12 12 5 . 15 18 11 2 186 Melee 127 | . . 9 5 2 . 14 12 6 12 12 5 . 15 18 11 2 4 Projectile . | . . . . . . . . . . . . . . . . . . AOE 198 | . . . . 16 . . . . . . . . . . . . 182 Terrain Rammed . | . . . . . . . . . . . . . . . . . . Walls Destroyed . | . . . . . . . . . . . . . . . . . . Machines Disabled . | . . . . . . . . . . . . . . . . . . Actions | -11 -10 -10 -9 -9 -9 -8 -8 -7 -6 -5 -4 -4 -3 -2 -2 -1 -1 --------- Run | Scr Mat Min Mat Min Exi Min Mat Fac Fac Fac Fac Ext Res Res Tes Acc Gar Total 6177 | 42 179 458 228 215 244 354 453 461 535 221 201 179 640 777 262 152 576 Wait 1179 | . 6 57 18 3 . 63 131 115 221 23 11 29 102 171 1 1 227 Move 4497 | 39 149 381 167 201 235 265 283 307 293 186 182 141 490 511 237 147 283 Hop 8 | . 1 2 . . . . 3 . . . . . . 1 1 . . Pick Up 22 | 2 3 . 3 . 1 . 1 3 1 . . . 2 1 3 . 2 Fast Attach 58 | 1 2 1 3 2 3 . 7 8 2 . . 2 9 10 4 1 3 Attach 18 | . . . 1 . 1 . . 2 . . . 1 2 2 1 . 8 Detach 14 | . 1 . 1 . 1 . . . . . . 2 1 2 . . 6 Swap 9 | . . . . 2 . . 1 1 1 . . . 1 . . . 3 Drop 40 | . 2 . 5 . 3 . 3 7 1 . . 1 6 5 4 . 3 Fire 64 | . 15 . 18 3 . . 6 . . . . 1 1 3 . . 17 Melee 223 | . . 17 12 4 . 26 18 15 16 12 8 2 26 36 11 3 17 Ram 1 | . . . . . . . . . . . . . . . . . 1 Kick . | . . . . . . . . . . . . . . . . . . Crush . | . . . . . . . . . . . . . . . . . . Escape Stasis 40 | . . . . . . . . . . . . . . 34 . . 6 Rewire 4 | . . . . . . . . 3 . . . . . 1 . . . Trap . | . . . . . . . . . . . . . . . . . . Miscellaneous . | . . . . . . . . . . . . . . . . . . Route ------- -11/Scrapyard -10/Materials (discovered 2 exits: *Min x2) -10/Mines (discovered 2 exits: *Mat x2) -9/Materials -9/Mines -9/Exiles (discovered 2 exits: [*Min x2]) -8/Mines -8/Materials (discovered 3 exits: *Fac x3) -7/Factory (discovered 3 exits: *Fac / [*Sto] / *Low) -6/Factory (discovered 4 exits: *Fac x4) -5/Factory (discovered 4 exits: *Fac x4) -4/Factory (discovered 8 exits: Res x4 / Upp x2 / *Ext x2) -4/Extension (discovered 3 exits: *Res x2 / Cet) -3/Research (discovered 3 exits: *Res x3) -2/Research -2/Testing -1/Access -1/Garrison History --------- Turn | Location | Event 2 | -11/Scrapyard | Met Revision 17 12 | -11/Scrapyard | Discovered new exit (range 16) 24 | -11/Scrapyard | Entered Materials 88 | -10/Materials | Identified exit to Mines 130 | -10/Materials | Entered Mines 166 | -10/Mines | Met a Derelict bent on vengeance 267 | -10/Mines | Discovered new exit (range 10) 310 | -10/Mines | Discovered new exit (range 6) 311 | -10/Mines | Build established: Mutant 312 | -10/Mines | Learned Materials terminal intel 386 | -10/Mines | Entered Materials 386 | -9/Materials | Evolved 2 slots: Utility x2 387 | -9/Materials | Loaded intel: 12 terminal locations 429 | -9/Materials | Central database locked down 440 | -9/Materials | Discovered new exit (range 16) 538 | -9/Materials | Entered Mines 554 | -9/Mines | Learned location of 1 exit from Proximity Caves 627 | -9/Mines | Received a Rocket Launcher from a helpful Derelict 628 | -9/Mines | A weapon hastily lodged in a ceiling crevice suddenly fell to the ground 631 | -9/Mines | Deemed a non-threat by the Exiles lab entrance 631 | -9/Mines | Discovered new exit (range 5) 633 | -9/Mines | Entered Exiles 639 | -9/Exiles | Discovered new exit (range 15) 642 | -9/Exiles | Met 8R-AWN 647 | -9/Exiles | Met EX-HEX 658 | -9/Exiles | Met EX-BIN 662 | -9/Exiles | Aligned with FarCom system 662 | -9/Exiles | Given EX-Vault access code 670 | -9/Exiles | Opened EX-Vault 671 | -9/Exiles | Found Prototype Device 671 | -9/Exiles | Identified Skeleton Box 675 | -9/Exiles | Found Prototype Special Weapon 675 | -9/Exiles | Identified Field Lobotomy Kit 687 | -9/Exiles | Warned to stay clear of 0b10 Research branches 696 | -9/Exiles | Met EX-DEC 717 | -9/Exiles | Discovered new exit (range 14) 722 | -9/Exiles | Left Exiles lab with Field Lobotomy Kit 722 | -9/Exiles | Entered Mines 937 | -8/Mines | Discovered new exit (range 8) 941 | -8/Mines | Entered Materials 941 | -8/Materials | Evolved 2 slots: Utility x2 974 | -8/Materials | Identified exit to Factory 1120 | -8/Materials | Repaired Hammer 1242 | -8/Materials | Entered Factory 1242 | -7/Factory | Evolved 2 slots: Utility x2 1318 | -7/Factory | Build established: Hacker-Mutant 1361 | -7/Factory | Discovered new exit (range 4) 1362 | -7/Factory | Identified exit to Factory 1365 | -7/Factory | Discovered new exit (range 3) 1366 | -7/Factory | Identified exit to Lower Caves 1385 | -7/Factory | Discovered new exit (range 16) 1422 | -7/Factory | Fabricated Hacking Suite (x1) 1460 | -7/Factory | Fabricated Hacking Suite (x1) 1524 | -7/Factory | Entered another Factory area 1524 | -6/Factory | Accompanied by 1 ally 1524 | -6/Factory | Evolved 2 slots: Utility x2 1573 | -6/Factory | Fabricated Hacking Suite (x1) 1698 | -6/Factory | Identified exit to Factory 1720 | -6/Factory | Local fabrication network quarantined 1737 | -6/Factory | Fabricated System Shield (x1) 1875 | -6/Factory | Build established: Wizard-Mutant 1895 | -6/Factory | Entered another Factory area 1895 | -5/Factory | Evolved 2 slots: Utility x2 1950 | -5/Factory | Identified exit to Factory 2015 | -5/Factory | Entered another Factory area 2015 | -4/Factory | Evolved 2 slots: Utility x2 2102 | -4/Factory | Discovered new exit (range 16) 2108 | -4/Factory | Identified exit to Research 2108 | -4/Factory | Identified exit to Upper Caves 2108 | -4/Factory | Identified exit to Extension 2110 | -4/Factory | Entered Extension 2169 | -4/Extension | Spotted B-86 Titan 2175 | -4/Extension | Assimilated B-86 Titan with FLK Orb 2181 | -4/Extension | Spotted B-86 Titan 2184 | -4/Extension | Identified exit to Cetus 2191 | -4/Extension | Destroyed B-86 Titan 2207 | -4/Extension | Entered Research 2207 | -3/Research | Accompanied by 3 allies 2207 | -3/Research | Evolved 2 slots: Utility x2 2242 | -3/Research | Spotted B-86 Titan 2246 | -3/Research | Assimilated B-86 Titan with FLK Orb 2290 | -3/Research | Lost 3 parts (1p1n1u) 2382 | -3/Research | Identified exit to Research 2609 | -3/Research | Entered another Research area 2609 | -2/Research | Evolved 2 slots: Utility x2 2642 | -2/Research | Fabricated Hacking Suite (x1) 2668 | -2/Research | Fabricated Hacking Suite (x1) 2694 | -2/Research | Fabricated Hacking Suite (x1) 2898 | -2/Research | Assimilated P-80 Master with FLK Orb 2919 | -2/Research | Garrison activated, responded to threat 2945 | -2/Research | Assimilated P-80 Master with FLK Orb 2949 | -2/Research | Assimilated P-80 Master with FLK Orb 3129 | -2/Research | Discovered new exit (range 9) 3136 | -2/Research | Entered Testing 3137 | -2/Testing | Maximum security lockdown engaged 3196 | -2/Testing | Found Prototype Processor 3196 | -2/Testing | Identified Exp. Signal Interpreter 3199 | -2/Testing | Found Exp. Signal Interpreter 3241 | -2/Testing | Found Fusion Bomb Launcher 3243 | -2/Testing | Found Fusion Bomb Launcher 3261 | -2/Testing | Discovered new exit (range 16) 3271 | -2/Testing | Identified exit to Access 3271 | -2/Testing | Entered Access 3271 | -1/Access | Evolved 2 slots: Utility x2 3337 | -1/Access | Identified exit to Garrison 3337 | -1/Access | Entered Garrison 3362 | -1/Garrison | Triggered checkpoint 3649 | -1/Garrison | Destroyed 9 combat bots 3654 | -1/Garrison | Lost 7 parts (2n5u) 3764 | -1/Garrison | Crushed by falling debris 3778 | -1/Garrison | Triggered checkpoint 3782 | -1/Garrison | Core integrity fell below 50% 3783 | -1/Garrison | Spotted B-99 Colossus 3787 | -1/Garrison | Core integrity fell below 20% 3800 | -1/Garrison | Destroyed by S-43 Plague with Heavy Machine Gun Last Messages --------------- 03783_ Xenon Bombardment Thruster destroyed. 03784_ Penetrated by Slug. 03784_ Imp. Hacking Suite destroyed. 03784_ Hacking Suite destroyed. 03784_ Penetrated by Slug. 03784_ Slug penetrates Reinforced Barrier. 03785_ The unstable cave ceiling collapses. 03785_ Penetrated by Slug. 03786_ Knocked back. 03786_ Penetrated by Slug. 03786_ Slug penetrates Reinforced Barrier. 03787_ Adv. Melee Analysis Suite destroyed. 03787_ Penetrated by Slug. 03789_ Slug penetrates Wall. 03789_ Penetrated by Slug. Garrison Door activated. 03791_ Slug penetrates Wall. 03791_ Penetrated by Slug. Garrison Door activated. 03797_ System corrupted: Component data lost. Map ----- +----------------------------------------------------+ | ?????????????????????????????????????????????????? | | ?????????????????????????????????????????????????? | | ?????????????????????????????????????????????????? | | ?????????????????????????????????????????????????? | | ?????????????????????????????????????????????????? | | ?????????????????????????????????????????????????? | | ?????????????????????????????????????????????????? | | ?????????????????????????????????????????????????? | | ?????????????????????????????????????????????????? | | ?????????????????????????????????????????????????? | | ?????????????????????????????????????????????????? | | ?????????????????????????????????????????????????? | | ?????????????????????????????????????????????????? | | ?????????????????????????????????????????????????? | | ?????????????????????????????????????????????????? | | ?????????????????????????????????????????????????? | | ???????????????????????####??????????????????????? | | ???????????????????????# sss????????????????????? | | ???????????????????????# ???s??????????????????? | | ???????????????????????# #??????????????????????? | | ???????????????????????# #??????????????????????? | | ???????????????????????# #??????????????????????? | | ???????????????????????# #??????????????????????? | | ???????????????????????# #??????????????????????? | | ???????????????????????# #??????????????????????? | | ???????????????????????# @#??????????????????????? | | ???????????????????????# #??????????????????????? | | ???????????????????????# #??????????????????????? | | ???????????????????????# #??????????????????????? | | ????????????############ #??????????????????????? | | ????????????# #??????????????????????? | | ????????????# #??????????g???????????? | | ????????????# ######### #??????????g???????????? | | ????????????# ????????# #??????????g???????????? | | ????????????# ????????# #######????????????????? | | ????????????# Y?????gh#ss #????????????? | | ????????????# ?????g??# #######????????????????? | | ??????# ????#Y ?????g??# #??????????????????????? | | ?###### ## ##???Y??# #??????????????????????? | | ? ######## #??????????????????????? | | ? g gh #??????????????????????? | | ? ggg #??????????????????????? | | ?? ???# ## Y"###########?????????????????????? | | ?# ## ## ####???# ##????????????????????? | | ?" # #### #????????????????????? | | ?" # ## #????????????????????? | | ?" ## ## #????????????????????? | | ?" # #????????????????????? | | ?# ## ## ### ##???????????????????? | | ?? ???# ## ## # #???????????????????? | +----------------------------------------------------+ Best States ------------- Heat Dissipation 84 Energy Generation 18 Energy Capacity 470 Matter Stores 300 Matter Capacity 300 Sight Range 16 Robot Scan Range 13 Terrain Scan Density 10 Jamming Range 8 Armor Coverage 225 Utility Shielding 33 Evasion (%) 76 Targeting Accuracy 8 Melee Accuracy 40 Core Analysis 10 Offensive Hacking 82 Defensive Hacking 20 Item Schematics ----------------- Hacking Suite | -9/Materials | Scanalyzed System Shield | -7/Factory | Scanalyzed Imp. Coolant Injector | -6/Factory | Hacked Enh. Nova Cannon | -4/Factory | Hacked Robot Schematics ------------------ H-66 Slayer | -6/Factory | Hacked Fabricated ------------ Hacking Suite | x1 | -7/Factory Hacking Suite | x1 | -7/Factory Hacking Suite | x1 | -6/Factory System Shield | x1 | -6/Factory Hacking Suite | x1 | -2/Research Hacking Suite | x1 | -2/Research Hacking Suite | x1 | -2/Research Alien Tech Used ----------------- None Achievements -------------- Dodgeball, But With Guns Challenges ------------ None Game ------ Seed ShockVariableDeconstructor Manual? 0 Play Time 01:13:53 Cumulative 121.6 hours Start 2020.10.08 @ 21:47:14 End 2020.10.08 @ 23:25:48 Sessions 1 Manual Loads 0 Difficulty Rogue Special Mode None Game No. 178 Rogue 154 Adventurer 22 Explorer 2 Win Type - Total 1 Types 1/0/0/0/0/0/0/0/0 Lore% 51 Gallery% 55 Achievement% 44 Wizard Run 0 Options --------- ASCII 0 Keyboard 0 Movement Numpad Keybinds 0 Fullscreen 1 Font 14/SmallcapsGlow Map View 84x54 Tactical HUD 1 Map Filters NONE Filters NONE Steam 1 RUN: c1f0f673-5bcc-4097-b73e-bd32118f1e84